Cogmind - Beta 16.1 @@@ ROGUE MODE // 2026.01.04 @ 16:33:10 Player: cxt100s Result: Destroyed by H-81 Overseer with Heavy Linear Accelerator Performance ------------- Evolutions (9) 4500 Regions Visited (20) 4000 Robots Destroyed (137) 685 Value Destroyed (3979) 3979 Prototype IDs (19) 380 Alien Tech Used (0) 0 Bonus (12464) 12464 TOTAL SCORE: 26008 Bonus ------- High Alert Combat Kills 164 Hunted by Unchained 500 Registered with UFD 300 Met Optimus in HQ 500 Met Optimus at Protoforge 1000 Executed Drillbomb Mission 10000 Cogmind --------- Core Integrity 0/1600 Matter 295/300 Energy 99/100 System Corruption 0% Temperature Cool (0) Movement Core (50) Location -1/Access Parts ------- > --- POWER (2) -------- (None) > --- PROPULSION (8) --- (None) > --- UTILITY (13) ----- Hacking Suite > --- WEAPON (2) ------- (None) > --- INVENTORY (5) ---- Field Propulsion Array Medium Storage Unit Plasma Lance Peak State ------------ > --- POWER ------------ Improved Deuterium Engine Light Quantum Reactor > --- PROPULSION ------- Xenon Bombardment Thruster Impulse Thruster Array Impulse Thruster Array Impulse Thruster Array > --- UTILITY ---------- Medium Storage Unit Advanced Signal Interpreter Makeshift Propulsion Shielding Makeshift Propulsion Shielding Centrium Light Armor Plating Centrium Medium Armor Plating Graphene Brace Hacking Suite Improved Hacking Suite Advanced Hacking Suite > --- WEAPON ----------- Plasma Lance Enhanced Force Lance > --- INVENTORY -------- UFD Drillbomb [Rating: 146] Favorites ----------- Power Heavy Ion Engine Engine Heavy Ion Engine Power Core Light Fission Core Reactor Micro Antimatter Reactor Propulsion Light Treads Treads Light Treads Leg Aluminum Leg Wheel Wheel Flight Unit Improved Flight Unit Utility Hacking Suite Device Seismic Detector Storage Huge Storage Unit Processor Advanced Signal Interpreter Hackware Hacking Suite Protection Light Armor Plating Weapon Heavy Assault Rifle Energy Gun Small Laser Ballistic Gun Heavy Assault Rifle Launcher Rocket Launcher Special Weapon Plasma Cutter Impact Weapon Hammer Slashing Weapon Katana Piercing Weapon Plasma Lance Special Melee Weapon Advanced Datajack Build | -11 -10 -9 -8 -8 -8 -8 -6 -6 -6 -5 -4 -4 -4 -4 -4 -3 -3 -3 -2 -1 ------- Run | Yrd Mat Mat Mat Sto Rec Scr Fac Low Low Fac Fac Was Fac Upp Upp Res Qua Frg Res Acc Slots Evolved 18 | . . 2 2 . . . 4 . . 2 2 . . . . 2 . . 2 2 Power 1 | . . . . . . . . . . 1 . . . . . . . . . . Propulsion 6 | . . 1 . . . . 2 . . 1 . . . . . 1 . . . 1 Utility 11 | . . 1 2 . . . 2 . . . 2 . . . . 1 . . 2 1 Weapon . | . . . . . . . . . . . . . . . . . . . . . Parts Attached 168 | 4 6 22 34 4 4 4 16 1 . 8 2 . 1 1 . 4 7 45 2 3 Power 33 | 1 . 3 4 . . . 1 . . 2 . . . . . 2 2 16 1 1 Engine 18 | 1 . 3 4 . . . 1 . . 1 . . . . . . 1 6 . 1 Core 3 | . . . . . . . . . . 1 . . . . . 1 . 1 . . Reactor 12 | . . . . . . . . . . . . . . . . 1 1 9 1 . Propulsion 54 | 2 1 6 12 2 2 2 6 1 . 3 . . . 1 . . 1 13 1 1 Treads 24 | 2 1 5 12 2 2 . . . . . . . . . . . . . . . Leg . | . . . . . . . . . . . . . . . . . . . . . Wheel 2 | . . . . . . 2 . . . . . . . . . . . . . . Hover . | . . . . . . . . . . . . . . . . . . . . . Flight 28 | . . 1 . . . . 6 1 . 3 . . . 1 . . 1 13 1 1 Utility 57 | 1 2 10 8 2 1 1 7 . . 3 1 . 1 . . 2 4 13 . 1 Device 18 | 1 . . 1 . . . 4 . . 1 . . 1 . . 1 3 5 . 1 Storage 5 | . 2 1 . . . . 1 . . . . . . . . . . 1 . . Processor 4 | . . . . . . . 2 . . 1 . . . . . . . 1 . . Hackware 7 | . . 2 . 1 . . . . . 1 1 . . . . 1 1 . . . Protection 23 | . . 7 7 1 1 1 . . . . . . . . . . . 6 . . Artifact . | . . . . . . . . . . . . . . . . . . . . . Weapon 24 | . 3 3 10 . 1 1 2 . . . 1 . . . . . . 3 . . Energy Gun . | . . . . . . . . . . . . . . . . . . . . . Energy Cannon . | . . . . . . . . . . . . . . . . . . . . . Ballistic Gun 14 | . 2 2 9 . 1 . . . . . . . . . . . . . . . Ballistic Cannon . | . . . . . . . . . . . . . . . . . . . . . Launcher 1 | . . 1 . . . . . . . . . . . . . . . . . . Special Weapon 1 | . . . . . . 1 . . . . . . . . . . . . . . Impact Weapon 2 | . 1 . 1 . . . . . . . . . . . . . . . . . Slashing Weapon 2 | . . . . . . . 2 . . . . . . . . . . . . . Piercing Weapon 3 | . . . . . . . . . . . . . . . . . . 3 . . Special Melee Weapon 1 | . . . . . . . . . . . 1 . . . . . . . . . Unidentified Prototypes 12 | . . 2 . . . . 1 . . . . . . 1 . . . 8 . . Parts Lost 77 | . . 5 18 1 1 . . 1 . 1 . . . . . 7 2 24 6 11 Power 16 | . . . 1 . . . . . . 1 . . . . . 2 1 8 1 2 Propulsion 25 | . . 2 5 . . . . 1 . . . . . . . . 1 10 2 4 Utility 27 | . . 2 8 1 . . . . . . . . . . . 4 . 5 3 4 Weapon 9 | . . 1 4 . 1 . . . . . . . . . . 1 . 1 . 1 Highest Loss Streak 11 | . . 2 2 1 1 . . 1 . 1 . . . . . 4 5 6 5 11 To Critical Strikes . | . . . . . . . . . . . . . . . . . . . . . Average Backups 17 | 3 13 20 23 25 24 24 9 8 8 8 8 9 8 9 9 6 8 1 1 2 Power 1 | 1 1 1 2 3 3 3 1 1 1 . 1 1 1 1 1 . . . . . Propulsion 6 | 1 3 8 9 10 10 9 2 1 1 1 2 3 2 2 2 1 2 . . 1 Utility 3 | . 3 5 2 3 3 4 3 4 4 5 3 3 3 3 4 3 4 . 1 1 Weapon 4 | 1 5 5 7 8 6 5 2 2 2 1 1 2 2 2 2 1 1 . . . Tool/Special . | . . . . . . . . . . . . . . . . . . . . . Unused Backups 52 | 6 6 10 10 . 1 4 6 . . 2 . . 1 1 . . 3 1 . 1 Power 10 | . 1 1 5 . . . 1 . . . . . . . . . 1 1 . . Propulsion 18 | 5 . 4 3 . . 2 2 . . . . . 1 . . . . . . 1 Utility 9 | 1 1 1 . . . 1 1 . . 1 . . . 1 . . 2 . . . Weapon 14 | . 4 4 2 . 1 1 1 . . 1 . . . . . . . . . . Tool/Special 1 | . . . . . . . 1 . . . . . . . . . . . . . Average Slot Usage (%) 96 | . 99 99 94 99 100 97 99 100 100 98 97 100 100 100 100 98 88 82 65 36 Engine 8 | . 14 11 8 9 9 9 6 6 6 6 5 5 5 5 5 1 . 2 . . Treads 20 | . 27 32 26 27 27 21 . . . . . . . . . . . . . . Flight 7 | . . . . . . . 32 33 33 34 31 31 31 31 31 33 30 19 15 7 Device 6 | . 14 5 4 . . . 12 13 13 16 15 15 15 15 15 13 13 11 8 2 Storage 8 | . 14 11 9 9 9 9 6 6 6 5 5 5 5 5 5 4 4 3 . . Processor 1 | . . . . . . . 5 6 6 5 5 5 5 5 5 4 4 4 5 2 Hackware 12 | . . 2 18 18 18 18 13 13 13 11 14 15 15 15 15 18 17 16 13 9 Protection 9 | . . 13 9 17 18 18 6 6 6 . 4 5 5 5 5 3 . 6 10 5 Ballistic Gun 14 | . 25 21 17 18 17 17 . . . . . . . . . . . . . . Slashing Weapon 1 | . . . . . . . 12 13 13 11 5 5 5 5 5 4 4 2 . . Peak Build Rating 146 | 7 11 22 28 28 27 38 48 47 44 66 82 82 83 86 86 96 114 146 126 108 Average Rating 37 | 6 10 17 24 27 26 30 45 46 44 59 79 82 82 81 86 92 94 123 108 60 On Entrance 56 | 7 7 11 22 28 27 26 38 45 44 44 63 82 82 82 86 86 81 114 126 92 Avg Prop Armor Cover (%) 6 | . . . . . . 5 . . . . . . . . . . 6 8 . . Naked Turns . | . . . . . . . . . . . . . . . . . . . . . Heaviest Build 104 | 14 52 101 104 104 100 100 25 25 25 30 31 31 31 32 31 34 38 53 25 21 Greatest Support 66 | 40 40 66 66 60 60 60 26 26 26 32 33 33 33 34 34 48 51 57 54 53 Greatest Overweight (x) 9 | . 1 1 2 1 1 9 . . . . . . . . . . . 1 . 2 Average Overweight (x) . | . . . 1 1 1 2 . . . . . . . . . . . . . . Largest Inventory Capacity 25 | 8 20 25 25 25 25 25 25 10 10 10 10 10 10 10 10 10 10 10 5 5 Average Capacity 19 | 8 16 21 25 25 25 25 10 10 10 10 10 10 10 10 10 10 10 9 5 5 Most Carried 25 | 7 20 25 25 25 25 25 25 10 9 10 10 10 10 10 10 10 10 10 3 4 Average Carried 18 | 3 13 20 23 25 24 24 10 9 9 9 9 10 9 10 10 7 9 6 2 3 Final Capacity 25 | 8 20 25 25 25 25 25 10 10 10 10 10 10 10 10 10 10 10 5 5 5 Final Carried 25 | 5 20 25 25 25 24 25 10 9 9 10 10 10 10 10 10 9 10 2 3 4 Class Distribution -------------------- 30% | Scavenger-Mutant 26% | Mutant 22% | Hacker-Mutant 12% | Hacker-Sprinter 7% | Hacker-Scout Dominant Class ---------------- Mutant | -10/Materials Mutant | -9/Materials Scavenger-Mutant | -8/Materials Scavenger-Mutant | -8/Storage Scavenger-Mutant | -8/Recycling Hacker-Mutant | -8/Scraptown Hacker-Sprinter | -6/Factory Hacker-Scout | -6/Lower Caves Hacker-Scout | -6/Lower Caves Hacker-Sprinter | -5/Factory Hacker-Scout | -4/Factory Hacker-Scout | -4/Waste Hacker-Scout | -4/Factory Hacker-Scout | -4/Upper Caves Hacker-Scout | -4/Upper Caves Hacker-Sprinter | -3/Research Hacker-Sprinter | -3/Quarantine Scavenger-Mutant | -3/Protoforge Scavenger-Mutant | -2/Research Hacker-Mutant | -1/Access Resources | -11 -10 -9 -8 -8 -8 -8 -6 -6 -6 -5 -4 -4 -4 -4 -4 -3 -3 -3 -2 -1 ----------- Run | Yrd Mat Mat Mat Sto Rec Scr Fac Low Low Fac Fac Was Fac Upp Upp Res Qua Frg Res Acc Matter Collected 5774 | 268 405 1333 2076 213 100 41 28 123 . 286 . 80 . 50 . 10 112 644 . 5 Remotely . | . . . . . . . . . . . . . . . . . . . . . Salvage Created 5815 | 189 592 1443 2556 520 115 . 28 . . . . . . . . . 317 55 . . Parts 328 | 15 28 101 134 29 6 . 3 . . . . . . . . . 9 3 . . Haulers Intercepted 4 | . 2 1 1 . . . . . . . . . . . . . . . . . Recyclers Shooed 15 | . 4 4 3 . . . 2 . . . . . . . . . 2 . . . Parts Field Recycled . | . . . . . . . . . . . . . . . . . . . . . Retrieved Matter . | . . . . . . . . . . . . . . . . . . . . . Parts Self-Destructed 5 | . . . . . . . . . 1 . . . . 4 . . . . . . Prevented 5 | . . . . . . . . . . . . . . 5 . . . . . . Parts Restored . | . . . . . . . . . . . . . . . . . . . . . Kills | -11 -10 -9 -8 -8 -8 -8 -6 -6 -6 -5 -4 -4 -4 -4 -4 -3 -3 -3 -2 -1 ------- Run | Yrd Mat Mat Mat Sto Rec Scr Fac Low Low Fac Fac Was Fac Upp Upp Res Qua Frg Res Acc Combat Hostiles Destroyed 98 | . 7 31 49 9 2 . . . . . . . . . . . . . . . Guns 93 | . 7 29 46 9 2 . . . . . . . . . . . . . . . AOE 5 | . . 2 3 . . . . . . . . . . . . . . . . . Classes Destroyed 12 | 2 4 3 2 . . . 1 . . . . . . . . . . . . . Worker 5 | . . . . . . . 1 . . . . . . . . . 2 2 . . Builder 4 | . . . 3 1 . . . . . . . . . . . . . . . . Tunneler 8 | 5 . . 3 . . . . . . . . . . . . . . . . . Hauler 4 | . 2 1 1 . . . . . . . . . . . . . . . . . Recycler 11 | 1 4 2 2 . . . . . . . . . . . . . 2 . . . Operator 2 | . 1 1 . . . . . . . . . . . . . . . . . . Watcher 5 | . . 3 2 . . . . . . . . . . . . . . . . . Swarmer 21 | . 6 8 7 . . . . . . . . . . . . . . . . . Grunt 45 | . 1 11 30 3 . . . . . . . . . . . . . . . . Brawler 2 | . . . 1 1 . . . . . . . . . . . . . . . . Duelist 3 | . . 2 1 . . . . . . . . . . . . . . . . . Sentry 27 | . . 10 10 5 2 . . . . . . . . . . . . . . . Best Kill Streak 4 | 4 3 4 4 4 1 . 1 . . . . . . . . . 3 1 . . Combat Bots Only 4 | . 3 4 4 3 1 . . . . . . . . . . . . . . . Max Kills in Single Turn 3 | 1 1 2 3 1 1 . 1 . . . . . . . . . 1 1 . . Gunslinging 1 | . . 1 . . . . . . . . . . . . . . . . . . Exploded 3 | . . 2 3 . . . . . . . . . . . . . . . . . Melee . | . . . . . . . . . . . . . . . . . . . . . Uniques/NPCs Destroyed . | . . . . . . . . . . . . . . . . . . . . . Combat | -11 -10 -9 -8 -8 -8 -8 -6 -6 -6 -5 -4 -4 -4 -4 -4 -3 -3 -3 -2 -1 -------- Run | Yrd Mat Mat Mat Sto Rec Scr Fac Low Low Fac Fac Was Fac Upp Upp Res Qua Frg Res Acc Hostile Shots Fired 1185 | . 37 146 310 37 12 . 7 6 2 27 . . 6 3 . 59 18 303 52 160 Missed 455 | . 9 38 82 8 2 . 3 5 2 18 . . 5 2 . 27 12 155 25 62 Hits 730 | . 28 108 228 29 10 . 4 1 . 9 . . 1 1 . 32 6 148 27 98 Melee 3 | . . 1 . 1 . . . . . . . . . . . . . 1 . . Projectile 727 | . 28 107 228 28 10 . 4 1 . 9 . . 1 1 . 32 6 147 27 98 AOE 2 | . . . . . . . . . . . . . . . . . . . . 2 Critical Strikes 27 | . . . 6 1 . . . . . 1 . . . . . 1 . 13 . 5 Actively Blocked 15 | . . . . . . . . . . . . . . . . . . 11 . 4 Damage Taken 13823 | . 255 1346 3468 428 141 . 37 31 . 272 . . 23 16 . 802 95 3896 621 2392 Core 3780 | . 66 82 377 98 . . . . . 111 . . 23 . . 170 22 976 174 1681 Absorbed by Shields 171 | . . . . . . . . . . . . . . . . . . 171 . . Redirected to Shielding 168 | . . . . . . . . . . . . . . . . . . 81 34 53 Regen/Repaired (Parts) 1416 | . 113 195 533 . . 483 . . . 58 . 18 . 16 . . . . . . Core Remaining (%) 72 | 100 73 79 . . . 13 . . 100 88 . . . . 98 . . 10 88 . Volleys Fired 428 | 11 43 121 221 26 6 . . . . . . . . . . . . . . . Largest 2 | 2 2 2 2 2 2 . . . . . . . . . . . . . . . Hottest 60 | 60 60 46 48 46 46 . . . . . . . . . . . . . . . Shots Fired 848 | 22 84 241 437 52 12 . . . . . . . . . . . . . . . Gun 846 | 22 84 240 436 52 12 . . . . . . . . . . . . . . . Cannon . | . . . . . . . . . . . . . . . . . . . . . Launcher 2 | . . 1 1 . . . . . . . . . . . . . . . . . Special . | . . . . . . . . . . . . . . . . . . . . . Kinetic 829 | 11 78 240 436 52 12 . . . . . . . . . . . . . . . Thermal 17 | 11 6 . . . . . . . . . . . . . . . . . . . Explosive 2 | . . 1 1 . . . . . . . . . . . . . . . . . Electromagnetic . | . . . . . . . . . . . . . . . . . . . . . Robot Hit Streak 27 | 4 5 19 17 21 27 . . . . . . . . . . . . . . . Robot Miss Streak 6 | 2 5 3 6 2 1 . . . . . . . . . . . . . . . Penetration Max . | . . . . . . . . . . . . . . . . . . . . . Secondary Targets 7 | . . 4 2 1 . . . . . . . . . . . . . . . . Max Gunslinging Chain 1 | . . 1 1 1 . . . . . . . . . . . . . . . . Shots Hit Robots 589 | 14 44 161 296 43 10 . 5 . . 2 1 . . . . 2 8 3 . . Core Hits 239 | 7 18 59 128 16 4 . 2 . . . . . . . . . 3 2 . . Critical Kills 4 | . 1 . 2 1 . . . . . . . . . . . . . . . . Critical Parts Destroyed 7 | . . . 6 1 . . . . . . . . . . . . . . . . Critical Strikes 11 | . 1 . 8 2 . . . . . . . . . . . . . . . . Destroy 11 | . 1 . 8 2 . . . . . . . . . . . . . . . . Melee Attacks 217 | . 7 2 2 . 3 . 60 3 . 81 2 . 1 . . 20 13 19 1 3 Impact 14 | . 7 2 2 . 3 . . . . . . . . . . . . . . . Slashing 188 | . . . . . . . 60 3 . 81 1 . 1 . . 20 13 9 . . Piercing 14 | . . . . . . . . . . . . . . . . . . 10 1 3 Sneak Attacks 13 | . . . . . . . 3 . . . 1 . . . . 1 6 2 . . Combat Hostiles . | . . . . . . . . . . . . . . . . . . . . . Follow-up Attacks 1 | . . . . . . . 1 . . . . . . . . . . . . . Damage Inflicted 10129 | 185 679 2554 4714 684 139 . 289 . . 76 . . . . . 106 515 188 . . Guns 8669 | 185 679 2420 4562 684 139 . . . . . . . . . . . . . . . Cannons . | . . . . . . . . . . . . . . . . . . . . . Explosions 274 | . . 122 152 . . . . . . . . . . . . . . . . . Melee 1174 | . . . . . . . 289 . . 76 . . . . . 106 515 188 . . Ramming 12 | . . 12 . . . . . . . . . . . . . . . . . . Kinetic 8536 | 96 635 2420 4562 684 139 . . . . . . . . . . . . . . . Thermal 133 | 89 44 . . . . . . . . . . . . . . . . . . . Explosive 274 | . . 122 152 . . . . . . . . . . . . . . . . . Electromagnetic . | . . . . . . . . . . . . . . . . . . . . . Impact . | . . . . . . . . . . . . . . . . . . . . . Slashing 1174 | . . . . . . . 289 . . 76 . . . . . 106 515 188 . . Piercing . | . . . . . . . . . . . . . . . . . . . . . Highest Corruption 3 | . . . . . . . 1 1 1 2 . . . . . . . 3 . . Average Corruption 1 | . . . . . . . 1 1 1 2 . . . . . . . 1 . . Corruption Purged . | . . . . . . . . . . . . . . . . . . . . . Corruption Blocked . | . . . . . . . . . . . . . . . . . . . . . Effects 36 | . . . . . . . 1 1 . 15 . . . . . . . 19 . . Message Errors 5 | . . . . . . . 1 . . 3 . . . . . . . 1 . . Matter Fused 10 | . . . . . . . . . . 3 . . . . . . . 7 . . Heat Flow Errors 6 | . . . . . . . . 1 . 4 . . . . . . . 1 . . Energy Discharges 4 | . . . . . . . . . . 1 . . . . . . . 3 . . Parts Rejected 1 | . . . . . . . . . . . . . . . . . . 1 . . Parts Fused 1 | . . . . . . . . . . . . . . . . . . 1 . . Data Loss (minor) 5 | . . . . . . . . . . 2 . . . . . . . 3 . . Data Loss (major) 1 | . . . . . . . . . . 1 . . . . . . . . . . Alerts 3 | . . . . . . . . . . 1 . . . . . . . 2 . . Overload Shots . | . . . . . . . . . . . . . . . . . . . . . Overflow Damage 220 | . . . . . . . 37 . . 6 . . . . . . 177 . . . Projectiles . | . . . . . . . . . . . . . . . . . . . . . Explosions . | . . . . . . . . . . . . . . . . . . . . . Melee 220 | . . . . . . . 37 . . 6 . . . . . . 177 . . . Knockbacks . | . . . . . . . . . . . . . . . . . . . . . Impact . | . . . . . . . . . . . . . . . . . . . . . Kinetic . | . . . . . . . . . . . . . . . . . . . . . Secondary . | . . . . . . . . . . . . . . . . . . . . . Self-Inflicted Damage . | . . . . . . . . . . . . . . . . . . . . . Shots . | . . . . . . . . . . . . . . . . . . . . . Rammed 4 | . . 3 1 . . . . . . . . . . . . . . . . . Targets Rammed 4 | . . 3 1 . . . . . . . . . . . . . . . . . Kicked . | . . . . . . . . . . . . . . . . . . . . . Crushed . | . . . . . . . . . . . . . . . . . . . . . Highest Temperature 240 | . 36 102 104 23 5 . 1 240 . 170 . . . . . 225 66 108 . . Average Temperature 25 | . 9 21 14 5 3 . 1 154 . 89 . . . . . 61 29 33 . . Received Heat Transfer 3069 | . 36 465 1755 180 36 . . . . 54 . . . . . 27 . 507 9 . Siege Activations . | . . . . . . . . . . . . . . . . . . . . . Martial Activations . | . . . . . . . . . . . . . . . . . . . . . Shielding Activations . | . . . . . . . . . . . . . . . . . . . . . Robots Disrupted . | . . . . . . . . . . . . . . . . . . . . . Combat Hostiles . | . . . . . . . . . . . . . . . . . . . . . Robots Corrupted . | . . . . . . . . . . . . . . . . . . . . . Combat Hostiles . | . . . . . . . . . . . . . . . . . . . . . Parts Fried 3 | . . . . 3 . . . . . . . . . . . . . . . . Impact Corruptions . | . . . . . . . . . . . . . . . . . . . . . Robots Melted . | . . . . . . . . . . . . . . . . . . . . . Combat Hostiles . | . . . . . . . . . . . . . . . . . . . . . Parts Melted . | . . . . . . . . . . . . . . . . . . . . . Heat Transferred 300 | 200 100 . . . . . . . . . . . . . . . . . . . Parts Sabotaged . | . . . . . . . . . . . . . . . . . . . . . Parts Stolen . | . . . . . . . . . . . . . . . . . . . . . Parts Stripped . | . . . . . . . . . . . . . . . . . . . . . Power Chain Reactions . | . . . . . . . . . . . . . . . . . . . . . Alert | -11 -10 -9 -8 -8 -8 -8 -6 -6 -6 -5 -4 -4 -4 -4 -4 -3 -3 -3 -2 -1 ------- Run | Yrd Mat Mat Mat Sto Rec Scr Fac Low Low Fac Fac Was Fac Upp Upp Res Qua Frg Res Acc Maximum Alert Level 4 | . . 1 2 1 . . . . . . . . 1 . . . . 4 3 2 Low Security (%) 68 | 100 100 56 34 81 100 . 100 . . 100 100 100 96 . . 100 100 42 . . Level 1 17 | . . 43 29 18 . . . . . . . . 3 . . . . 10 . . Level 2 11 | . . . 36 . . . . . . . . . . . . . . 19 50 100 Level 3 2 | . . . . . . . . . . . . . . . . . . 26 49 . Level 4 . | . . . . . . . . . . . . . . . . . . . . . Level 5 . | . . . . . . . . . . . . . . . . . . . . . High Security . | . . . . . . . . . . . . . . . . . . . . . Max Security . | . . . . . . . . . . . . . . . . . . . . . Peak Influence 1110 | 20 86 268 557 235 24 . 42 . . 53 6 . 201 . . 41 20 1110 824 564 Initial 624 | . . 5 92 201 24 . . . . . . . . . . 26 . . 624 494 Average 156 | 3 31 146 292 164 1 . 5 . . 13 . . 53 . . 9 5 426 692 499 Influence Increases 6636 | 30 360 1060 1544 335 72 . 164 . . 369 8 . 318 30 . 94 83 1746 300 123 Destroy 0b10 Robot/C 2100 | . 140 620 980 180 40 . . . . . . . 140 . . . . . . . Destroy 0b10 Robot/NC 200 | 30 35 35 55 5 . . 5 . . . . . 5 . . . 20 10 . . Destroy Leader 538 | . 34 188 226 60 . . . . . . . . 30 . . . . . . . Allied During Kill 9 | . . . . . . . . . . . . . 9 . . . . . . . Successful Hack 426 | . 40 54 4 13 29 . 58 . . 97 6 . 24 . . 4 12 28 42 15 Select Force Hacks 240 | . 60 60 60 60 . . . . . . . . . . . . . . . . Disable Machine 90 | . . 15 15 . . . 15 . . . . . . . . 15 15 . . 15 Destroy Structure 363 | . 6 13 24 2 3 . 41 . . 122 2 . 80 . . 30 6 28 3 3 Partial Spotted 495 | . . . . . . . 45 . . 150 . . . . . 30 30 195 15 30 Lose Combat Pursuer 2175 | . 45 75 180 15 . . . . . . . . 30 30 . 15 . 1485 240 60 Influence Decreases 6189 | 30 346 854 1286 751 134 . 164 . . 369 8 . 127 172 10 131 85 636 586 500 Entered New Map 1365 | . . 9 128 277 38 . . . . . . . . 72 10 13 2 . 486 330 Time Decay 3417 | 30 346 573 528 464 96 . 164 . . 349 8 . 61 100 . 88 66 444 40 60 Lost Part 637 | . . 50 180 10 . . . . . . . . . . . 30 7 190 60 110 Lost Ally 98 | . . . . . . . . . . 20 . . 66 . . . 10 2 . . Purge Threat 672 | . . 222 450 . . . . . . . . . . . . . . . . . Squads Dispatched 72 | . 3 5 11 2 . . 8 . . 13 4 . 3 . . 9 2 9 3 . Investigation 46 | . 3 4 3 2 . . 5 . . 10 4 . 2 . . 7 . 4 2 . Extermination 11 | . . . . . . . 3 . . 3 . . 1 . . 2 1 . 1 . Reinforcement 11 | . . 1 4 . . . . . . . . . . . . . 1 5 . . Assault . | . . . . . . . . . . . . . . . . . . . . . Garrison 4 | . . . 4 . . . . . . . . . . . . . . . . . Intercept . | . . . . . . . . . . . . . . . . . . . . . Searches Triggered . | . . . . . . . . . . . . . . . . . . . . . Construction Impeded . | . . . . . . . . . . . . . . . . . . . . . Haulers Reinforced . | . . . . . . . . . . . . . . . . . . . . . Active Scanning Responses . | . . . . . . . . . . . . . . . . . . . . . Cargo Convoy Interrupts . | . . . . . . . . . . . . . . . . . . . . . Stealth | -11 -10 -9 -8 -8 -8 -8 -6 -6 -6 -5 -4 -4 -4 -4 -4 -3 -3 -3 -2 -1 --------- Run | Yrd Mat Mat Mat Sto Rec Scr Fac Low Low Fac Fac Was Fac Upp Upp Res Qua Frg Res Acc Distress Signals 56 | . 1 5 11 1 . . 4 . . 5 1 . 2 . . 3 1 19 2 1 Communications Jammed . | . . . . . . . . . . . . . . . . . . . . . Distress Signals . | . . . . . . . . . . . . . . . . . . . . . Times Spotted 528 | . 13 62 86 13 2 . 14 1 2 40 2 . 6 2 . 34 16 191 26 18 Peak Tracking Total 22 | . 3 6 5 4 1 . 5 1 4 6 3 . 6 4 . 10 6 22 14 13 Tactical Retreats 103 | . 2 3 11 1 . . 7 . 1 12 . . 1 2 . 9 4 43 4 3 ECM-based Alert Blocks 93 | . . . . . . . 9 . 3 29 . . . 3 . 25 6 18 . . Traps | -11 -10 -9 -8 -8 -8 -8 -6 -6 -6 -5 -4 -4 -4 -4 -4 -3 -3 -3 -2 -1 ------- Run | Yrd Mat Mat Mat Sto Rec Scr Fac Low Low Fac Fac Was Fac Upp Upp Res Qua Frg Res Acc Traps Triggered 21 | . 1 2 4 . . . . . . 2 3 . 1 . . 1 . 6 1 . Indirectly . | . . . . . . . . . . . . . . . . . . . . . Trap Hack Attempts . | . . . . . . . . . . . . . . . . . . . . . Triggered . | . . . . . . . . . . . . . . . . . . . . . Disarmed . | . . . . . . . . . . . . . . . . . . . . . Reprogrammed . | . . . . . . . . . . . . . . . . . . . . . Reused . | . . . . . . . . . . . . . . . . . . . . . Traps Extracted . | . . . . . . . . . . . . . . . . . . . . . Installed . | . . . . . . . . . . . . . . . . . . . . . Triggered . | . . . . . . . . . . . . . . . . . . . . . Machines | -11 -10 -9 -8 -8 -8 -8 -6 -6 -6 -5 -4 -4 -4 -4 -4 -3 -3 -3 -2 -1 ---------- Run | Yrd Mat Mat Mat Sto Rec Scr Fac Low Low Fac Fac Was Fac Upp Upp Res Qua Frg Res Acc Machines Disabled 7 | . 1 1 1 . . . 1 . . . . . . . . 1 1 . . 1 Max in Single Turn 1 | . 1 1 1 . . . 1 . . . . . . . . 1 1 . . 1 Garrison Access 3 | . . . . . . . 1 . . 1 . . . . . 1 . . . . Machines Repaired . | . . . . . . . . . . . . . . . . . . . . . Machines Dismantled . | . . . . . . . . . . . . . . . . . . . . . Machines Sabotaged . | . . . . . . . . . . . . . . . . . . . . . Overloaded Fab Kills . | . . . . . . . . . . . . . . . . . . . . . Hacking | -11 -10 -9 -8 -8 -8 -8 -6 -6 -6 -5 -4 -4 -4 -4 -4 -3 -3 -3 -2 -1 --------- Run | Yrd Mat Mat Mat Sto Rec Scr Fac Low Low Fac Fac Was Fac Upp Upp Res Qua Frg Res Acc Machines Accessed 143 | . 9 16 13 7 5 8 14 . . 31 4 . 8 1 . 10 4 9 3 1 Terminals 75 | . 6 10 7 5 5 . 7 . . 14 . . 6 . . 2 3 6 3 1 Fabricators 6 | . . . . . . . . . . 4 . . . . . 2 . . . . Repair Stations 9 | . 1 2 2 . . . 1 . . 3 . . . . . . . . . . Recycling Units 31 | . 2 2 2 2 . . 4 . . 6 3 . 2 . . 5 . 3 . . Scanalyzers 8 | . . 2 1 . . . 1 . . 2 1 . . . . . 1 . . . Garrison Access 5 | . . . 1 . . . 1 . . 2 . . . . . 1 . . . . Total Hacks 384 | . 21 49 39 24 24 57 27 . . 61 5 . 19 1 . 16 16 18 5 2 Successful 282 | . 15 32 33 18 16 57 17 . . 43 4 . 14 1 . 11 8 9 3 1 Failed 101 | . 6 17 6 6 8 . 10 . . 18 . . 5 . . 5 8 9 2 1 Catastrophic 9 | . 1 2 . . . . . . . 2 . . . . . 1 1 2 . . Database Lockouts 1 | . . . . . . . . . . . 1 . . . . . . . . . Manual 213 | . 14 27 18 24 23 . 19 . . 30 3 . 18 . . 11 7 13 4 2 Terminals 207 | . 14 31 21 22 24 . 16 . . 29 . . 16 . . 2 11 14 5 2 Fabricators 13 | . . . . . . . . . . 9 . . . . . 4 . . . . Repair Stations 33 | . 5 8 10 . . . 2 . . 8 . . . . . . . . . . Recycling Units 39 | . 2 2 2 2 . . 5 . . 7 3 . 3 . . 9 . 4 . . Scanalyzers 27 | . . 8 4 . . . 3 . . 5 2 . . . . . 5 . . . Garrison Access 7 | . . . 2 . . . 1 . . 3 . . . . . 1 . . . . Terminal Hacks 108 | . 2 6 6 5 9 57 2 . . 6 . . 4 1 . 1 3 4 2 . Record 49 | . . . . . . 49 . . . . . . . . . . . . . . Part Schematic 12 | . . 1 . 3 7 . . . . . . . 1 . . . . . . . Robot Analysis 7 | . . . . . . 7 . . . . . . . . . . . . . . Prototype ID Bank 1 | . . . . . . . . . . . . . . . . . 1 . . . Open Door 1 | . . . . . . . . . . . . . . 1 . . . . . . Level Access Points 3 | . . . . . . . . . . . . . 1 . . . . 1 1 . Branch Access Points 1 | . . . . . . . . . . . . . . . . 1 . . . . Machine Index 4 | . . . . . . . 1 . . 1 . . 1 . . . . 1 . . Terminal Index 3 | . . . . . 1 . . . . . . . . . . . . 1 1 . Alert Level 2 | . . . 1 1 . . . . . . . . . . . . . . . . Unreport Threat 5 | . . 2 3 . . . . . . . . . . . . . . . . . Locate Traps 5 | . 1 . 2 . . . . . . . . . 1 . . . . 1 . . Recall Investigation 2 | . . 1 . . . . . . . 1 . . . . . . . . . . Recall Extermination 3 | . . . . . . . . . . 3 . . . . . . . . . . Hauler Manifests 2 | . 1 1 . . . . . . . . . . . . . . . . . . Registered Components 6 | . . 1 . 1 1 . 1 . . 1 . . . . . . 1 . . . Zone Layout 1 | . . . . . . . . . . . . . . . . . 1 . . . Proto ID Catalog 1 | . . . . . . 1 . . . . . . . . . . . . . . Fabricator Hacks 11 | . . . . . . . . . . 7 . . . . . 4 . . . . Load Schematic 6 | . . . . . . . . . . 4 . . . . . 2 . . . . Build 5 | . . . . . . . . . . 3 . . . . . 2 . . . . Repair Station Hacks 28 | . 4 6 10 . . . 1 . . 7 . . . . . . . . . . Scan Component 15 | . 2 3 5 . . . 1 . . 4 . . . . . . . . . . Repair 13 | . 2 3 5 . . . . . . 3 . . . . . . . . . . Recycling Unit Hacks . | . . . . . . . . . . . . . . . . . . . . . Scanalyzer 22 | . . 7 4 . . . 2 . . 5 1 . . . . . 3 . . . Insert Component 6 | . . 1 1 . . . 1 . . 2 . . . . . . 1 . . . Analyze 6 | . . 1 1 . . . 1 . . 3 . . . . . . . . . . Retrieve Study 10 | . . 5 2 . . . . . . . 1 . . . . . 2 . . . Garrison Access Hacks 3 | . . . . . . . 1 . . 1 . . . . . 1 . . . . Seal Access 3 | . . . . . . . 1 . . 1 . . . . . 1 . . . . Unauthorized Hacks 110 | . 9 13 13 13 7 . 11 . . 17 3 . 10 . . 5 2 5 1 1 Terminals 79 | . 7 11 11 11 7 . 7 . . 11 . . 8 . . . 2 2 1 1 Assimilate 6 | . . . . . . . 1 . . 2 . . 1 . . . 1 1 . . Botnet 31 | . 2 6 4 5 2 . 2 . . 4 . . 2 . . . 1 1 1 1 Operators 1 | . . . . 1 . . . . . . . . . . . . . . . . Skim 41 | . 5 5 7 5 5 . 4 . . 5 . . 5 . . . . . . . Fabricators . | . . . . . . . . . . . . . . . . . . . . . Repair Stations . | . . . . . . . . . . . . . . . . . . . . . Recycling Units 31 | . 2 2 2 2 . . 4 . . 6 3 . 2 . . 5 . 3 . . Tunnel 8 | . 2 2 2 2 . . . . . . . . . . . . . . . . Fedlink 23 | . . . . . . . 4 . . 6 3 . 2 . . 5 . 3 . . Scanalyzers . | . . . . . . . . . . . . . . . . . . . . . Garrison Access . | . . . . . . . . . . . . . . . . . . . . . Data Cores Recovered 3 | . 1 1 . . . . . . . . . . 1 . . . . . . . Used . | . . . . . . . . . . . . . . . . . . . . . Hacking Detections 90 | . 5 12 11 4 5 . 9 . . 23 1 . 4 . . 4 4 5 2 1 Full Trace Events 8 | . . . 1 . . . 1 . . 4 . . . . . 2 . . . . Feedback Events 1 | . . . . . . . 1 . . . . . . . . . . . . . Corruption 1 | . . . . . . . 1 . . . . . . . . . . . . . Feedback Blocked . | . . . . . . . . . . . . . . . . . . . . . Robot Schematics Acquired . | . . . . . . . . . . . . . . . . . . . . . Robots Built . | . . . . . . . . . . . . . . . . . . . . . Authchips . | . . . . . . . . . . . . . . . . . . . . . Time . | . . . . . . . . . . . . . . . . . . . . . Total Robot Build Rating . | . . . . . . . . . . . . . . . . . . . . . Part Schematics Acquired 14 | . . 2 . 3 7 . . . . 1 . . 1 . . . . . . . Parts Built 5 | . . . . . . . . . . 3 . . . . . 2 . . . . Authchips . | . . . . . . . . . . . . . . . . . . . . . Time 543 | . . . . . . . . . . 353 . . . . . 190 . . . . Total Part Build Rating 22 | . . . . . . . . . . 12 . . . . . 10 . . . . Part Studies Acquired 10 | . . 5 2 . . . . . . . 1 . . . . . 2 . . . Parts Repaired 13 | . 2 3 5 . . . . . . 3 . . . . . . . . . . Time 423 | . 52 64 167 . . . . . . 140 . . . . . . . . . . Parts Recycled . | . . . . . . . . . . . . . . . . . . . . . Recycled Matter . | . . . . . . . . . . . . . . . . . . . . . Retrieved Matter . | . . . . . . . . . . . . . . . . . . . . . Retrieved Components . | . . . . . . . . . . . . . . . . . . . . . Parts Scanalyzed 3 | . . 1 1 . . . 1 . . . . . . . . . . . . . Part Schematics Acquired 2 | . . 1 . . . . . . . 1 . . . . . . . . . . Parts Damaged . | . . . . . . . . . . . . . . . . . . . . . Bothacking | -11 -10 -9 -8 -8 -8 -8 -6 -6 -6 -5 -4 -4 -4 -4 -4 -3 -3 -3 -2 -1 ------------ Run | Yrd Mat Mat Mat Sto Rec Scr Fac Low Low Fac Fac Was Fac Upp Upp Res Qua Frg Res Acc Used RIF Installer . | . . . . . . . . . . . . . . . . . . . . . Robots Hacked 1 | . . . . . . . . . . . 1 . . . . . . . . . Non-combat 1 | . . . . . . . . . . . 1 . . . . . . . . . Combat . | . . . . . . . . . . . . . . . . . . . . . Robot Hacks Applied 1 | . . . . . . . . . . . 1 . . . . . . . . . find_chute 1 | . . . . . . . . . . . 1 . . . . . . . . . Relay Couplers Released . | . . . . . . . . . . . . . . . . . . . . . Fabnet Peak Effective % . | . . . . . . . . . . . . . . . . . . . . . Robots Rewired . | . . . . . . . . . . . . . . . . . . . . . Allies Hacked . | . . . . . . . . . . . . . . . . . . . . . Hacks Repelled . | . . . . . . . . . . . . . . . . . . . . . Allies | -11 -10 -9 -8 -8 -8 -8 -6 -6 -6 -5 -4 -4 -4 -4 -4 -3 -3 -3 -2 -1 -------- Run | Yrd Mat Mat Mat Sto Rec Scr Fac Low Low Fac Fac Was Fac Upp Upp Res Qua Frg Res Acc Total Allies 25 | . . . . . . . 1 . . 2 . 20 . . . . 1 1 . . Largest Group 20 | . . . . . . . 1 . . 1 . 20 20 2 . . 1 1 . . Highest-Rated Group 760 | . . . . . . . 26 . . 26 . 760 760 54 . . 45 10 . . Highest-Rated Ally 50 | . . . . . . . 26 . . 26 . 50 50 27 . . 45 10 . . Initial UFD Resources 113 | . . . . . . . 23 41 41 45 69 85 85 89 89 93 113 113 . . Total Orders . | . . . . . . . . . . . . . . . . . . . . . Ally Attacks 46 | . . . . . . . . . . . . . 46 . . . . . . . Total Damage 1420 | . . . . . . . . . . . . . 1420 . . . . . . . Kills 8 | . . . . . . . . . . . . . 8 . . . . . . . Allies Corrupted . | . . . . . . . . . . . . . . . . . . . . . Allies Melted 1 | . . . . . . . . . . . . . . . . . . 1 . . Intel | -11 -10 -9 -8 -8 -8 -8 -6 -6 -6 -5 -4 -4 -4 -4 -4 -3 -3 -3 -2 -1 ------- Run | Yrd Mat Mat Mat Sto Rec Scr Fac Low Low Fac Fac Was Fac Upp Upp Res Qua Frg Res Acc Active Infowar (turns) 11968 | 34 2820 2084 2202 . . . 1012 294 11 1633 145 110 167 218 14 408 266 517 27 6 Optics 47 | . . . . . . . . . . . . . . . . . . 20 27 . Sensors 4680 | . . . . . . . 930 294 11 1633 145 110 167 218 14 404 266 488 . . Terrain 6 | . . . . . . . . . . . . . . . . . . . . 6 Structural 1532 | . . . . . . . 158 164 . 383 142 110 167 186 14 158 . 50 . . Seismic 7222 | 34 2820 2084 2202 . . . 82 . . . . . . . . . . . . . ECM 2737 | . . . . . . . 572 130 11 1082 3 . . 32 . 240 250 417 . . Robot Analysis Total 7 | . . . . . . 7 . . . . . . . . . . . . . . Derelict Logs Recovered 2 | . . . . . . . . 1 . . . . . 1 . . . . . . Drone Launches . | . . . . . . . . . . . . . . . . . . . . . Drone Recoveries . | . . . . . . . . . . . . . . . . . . . . . Exploration | -11 -10 -9 -8 -8 -8 -8 -6 -6 -6 -5 -4 -4 -4 -4 -4 -3 -3 -3 -2 -1 ------------- Run | Yrd Mat Mat Mat Sto Rec Scr Fac Low Low Fac Fac Was Fac Upp Upp Res Qua Frg Res Acc Turns Passed 24007 | 122 2820 3813 4793 1173 1508 3650 1025 294 11 1633 145 110 167 218 14 408 266 1616 91 130 Spaces Moved 20036 | 27 1155 1575 1253 314 434 1569 2253 397 41 3217 516 76 609 726 24 849 745 3716 245 295 Core 87 | . . . . . . . . . . . . . . . . . . . . 87 Treads 5941 | 27 1155 1575 1253 314 434 1183 . . . . . . . . . . . . . . Legs . | . . . . . . . . . . . . . . . . . . . . . Wheels 386 | . . . . . . 386 . . . . . . . . . . . . . . Hover . | . . . . . . . . . . . . . . . . . . . . . Flight 13622 | . . . . . . . 2253 397 41 3217 516 76 609 726 24 849 745 3716 245 208 Fastest Speed 6 | 160 160 160 240 243 243 111 27 27 27 23 22 22 22 21 21 7 6 13 33 33 Average Speed 88 | 160 204 197 243 243 243 230 27 27 27 23 22 22 22 21 21 18 20 32 34 40 Slowest Speed 320 | 160 240 240 320 243 243 243 27 27 27 27 22 22 22 22 21 19 32 119 37 150 Overloaded Moves 136 | . . . . . . . . . . . . . . . . 44 23 69 . . Propulsion Burnouts . | . . . . . . . . . . . . . . . . . . . . . Robots Hopped 109 | . . . . . . . 11 . . 28 7 . 2 1 . 22 5 32 1 . Potential Cave-ins 1 | . . . . . . . . . . . . . . . . . . 1 . . Cave-ins Triggered . | . . . . . . . . . . . . . . . . . . . . . Exploration Rate (%) 49 | 3 99 98 86 51 81 88 43 48 13 61 16 76 19 69 5 29 73 56 12 13 Regions Visited 20 Branch Regions 9 Pre-discovered Areas 24 | . 2 4 2 4 2 6 1 . . 2 . . . 1 . . . . . . Known Exits Taken 17 | . 1 1 1 1 1 1 1 1 1 1 . . 1 1 1 1 1 1 1 . Unknown Exits Taken 1 | 1 . . . . . . . . . . . . . . . . . . . . Scrap Searched 6 | . . . . . . 2 . 1 . . . . . 2 1 . . . . . Spaces Dug 152 | . 5 2 2 . 3 . 41 2 . 61 1 . 1 . . 15 3 14 1 1 Terrain Destroyed 168 | . 5 9 11 . 3 . 41 2 . 61 1 . 1 . . 15 3 14 1 1 Melee 152 | . 5 2 2 . 3 . 41 2 . 61 1 . 1 . . 15 3 14 1 1 Projectile . | . . . . . . . . . . . . . . . . . . . . . AOE 16 | . . 7 9 . . . . . . . . . . . . . . . . . Terrain Rammed . | . . . . . . . . . . . . . . . . . . . . . Walls Destroyed . | . . . . . . . . . . . . . . . . . . . . . Machines Disabled . | . . . . . . . . . . . . . . . . . . . . . Actions | -11 -10 -9 -8 -8 -8 -8 -6 -6 -6 -5 -4 -4 -4 -4 -4 -3 -3 -3 -2 -1 --------- Run | Yrd Mat Mat Mat Sto Rec Scr Fac Low Low Fac Fac Was Fac Upp Upp Res Qua Frg Res Acc Total 25223 | 84 1535 2087 2588 674 872 1599 2586 578 40 3946 538 168 638 783 32 1045 836 4042 248 304 Wait 3977 | 37 290 285 991 327 417 12 252 177 . 659 4 93 10 52 9 186 50 125 1 . Move 19816 | 26 1154 1574 1252 313 433 1568 2232 396 40 3161 502 75 604 723 23 809 735 3659 242 295 Hop 92 | . . . . . . . 9 . . 27 7 . 2 1 . 17 4 24 1 . Pick Up 142 | 2 21 31 32 . 1 6 6 . . 8 1 . 1 2 . 3 12 15 1 . Fast Attach 80 | 1 3 2 21 1 . 2 . . . 4 1 . 2 . . . 2 37 1 3 Attach 70 | . 1 10 19 . 1 . 11 1 . 3 2 . . . . 5 9 7 1 . Detach 13 | . 1 1 . . . . 1 . . 2 1 . . . . . 1 5 . 1 Swap 126 | 3 6 33 20 4 7 3 10 2 . 12 3 . . 3 . 5 2 13 . . Drop 158 | 4 9 25 29 3 4 8 16 . . 5 . . 3 2 . . 8 39 . 3 Fire 428 | 11 43 121 221 26 6 . . . . . . . . . . . . . . . Melee 186 | . 7 2 2 . 3 . 49 2 . 65 2 . 1 . . 20 13 17 1 2 Ram . | . . . . . . . . . . . . . . . . . . . . . Kick . | . . . . . . . . . . . . . . . . . . . . . Crush 4 | . . 3 1 . . . . . . . . . . . . . . . . . Escape Stasis 69 | . . . . . . . . . . . 15 . 15 . . . . 39 . . Rewire . | . . . . . . . . . . . . . . . . . . . . . Trap . | . . . . . . . . . . . . . . . . . . . . . Miscellaneous 62 | . . . . . . . . . . . . . . . . . . 62 . . Route ------- -11/Scrapyard -10/Materials (discovered 5 exits: *Mat x3 / *Min / Sub) -9/Materials (discovered 4 exits: *Mat x3 / *Min) -8/Materials (discovered 4 exits: [*Fac x2] / *Sto x2) -8/Storage -8/Recycling (discovered 2 exits: *Fac / *Scr) -8/Scraptown (discovered 2 exits: *Fac x2) -6/Factory (discovered 4 exits: *Fac x2 / *Low x2) -6/Lower Caves -6/Lower Caves -5/Factory (discovered 6 exits: *Fac x2 / *Upp x2 / Ext x2) -4/Factory -4/Waste -4/Factory (discovered 5 exits: Res x4 / *Upp) -4/Upper Caves -4/Upper Caves (discovered 2 exits: *Res / Zhi) -3/Research (discovered 3 exits: *Arm / *Qua x2) -3/Quarantine (discovered 2 exits: [*Sec] / *Frg) -3/Protoforge -2/Research (discovered 3 exits: *Acc x3) -1/Access History --------- Turn | Location | Event 20 | -11/Scrapyard | Discovered new exit (range 3) 123 | -11/Scrapyard | Entered Materials 124 | -10/Materials | Met a group of wandering Federalists 298 | -10/Materials | Discovered new exit (range 10) 314 | -10/Materials | Build established: Mutant 569 | -10/Materials | Discovered new exit (range 6) 673 | -10/Materials | Discovered new exit (range 8) 886 | -10/Materials | Discovered new exit (range 8) 1696 | -10/Materials | Identified exit to Subcaves 1696 | -10/Materials | Learned location of 2 exits from Materials 1725 | -10/Materials | Learned 4 Subcaves zone layouts 1745 | -10/Materials | Learned Storage trap positions 1757 | -10/Materials | Identified exit to Materials 1757 | -10/Materials | Identified exit to Mines 1902 | -10/Materials | Learned Materials stockpile data 2817 | -10/Materials | Repaired Lgt. Treads 2845 | -10/Materials | Repaired Lgt. Treads 2943 | -10/Materials | Entered another Materials area 2943 | -9/Materials | Evolved 2 slots: Propulsion x1, Utility x1 2944 | -9/Materials | Identified exit to Materials 2944 | -9/Materials | Identified exit to Mines 3592 | -9/Materials | Learned location of 1 exit from Recycling 3653 | -9/Materials | Learned Storage security intel 3822 | -9/Materials | Learned location of Zion (-6) 6595 | -9/Materials | Repaired Imp. Treads 6634 | -9/Materials | Repaired Med. Armor Plating 6650 | -9/Materials | Repaired Autogun 6671 | -9/Materials | Build established: Hacker-Mutant 6756 | -9/Materials | Entered another Materials area 6756 | -8/Materials | Evolved 2 slots: Utility x2 6757 | -8/Materials | Identified exit to Storage 6866 | -8/Materials | Garrison activated, responded to threat 8135 | -8/Materials | Build established: Scavenger-Mutant 8620 | -8/Materials | Repaired Lgt. Treads 8647 | -8/Materials | Repaired Lgt. Treads 8955 | -8/Materials | Discovered new exit (range 9) 9290 | -8/Materials | Discovered exit to Storage (range 6) 9302 | -8/Materials | Core integrity fell below 50% 9919 | -8/Materials | Garrison activated, responded to threat 10094 | -8/Materials | Discovered new exit (range 16) 10404 | -8/Materials | Learned Storage security intel 10440 | -8/Materials | Repaired Hvy. Ion Engine 10454 | -8/Materials | Learned Factory scanalyzer intel 10479 | -8/Materials | Repaired Arm. Treads 10493 | -8/Materials | Learned Factory repair station intel 10507 | -8/Materials | Repaired Lgt. Armor Plating 10520 | -8/Materials | Learned Factory scanalyzer intel 10537 | -8/Materials | Learned 2 Lower Caves zone layouts 10543 | -8/Materials | Learned Storage terminal intel 10558 | -8/Materials | Learned Factory emergency access door positions 10582 | -8/Materials | Learned location of 1 exit from Extension 11549 | -8/Materials | Entered Storage 11550 | -8/Storage | Identified exit to Recycling 11551 | -8/Storage | Loaded intel: 11 trap records 11553 | -8/Storage | Loaded intel: 13 terminal locations 11645 | -8/Storage | Met 01-MTF 12176 | -8/Storage | Core integrity fell below 20% 12403 | -8/Storage | Learned 2 Lower Caves zone layouts 12448 | -8/Storage | Learned Storage security intel 12505 | -8/Storage | Learned location of Recycling (-8) 12520 | -8/Storage | Learned 4 Factory zone layouts 12580 | -8/Storage | Learned Storage stockpile data 12712 | -8/Storage | Used back door to open Recycling access 12722 | -8/Storage | Entered Recycling 12723 | -8/Recycling | Identified exit to Factory 12724 | -8/Recycling | Identified exit to Scraptown 13637 | -8/Recycling | Learned Storage trap positions 13693 | -8/Recycling | Learned Factory garrison access intel 13778 | -8/Recycling | Learned Factory trap positions 13807 | -8/Recycling | Learned Factory emergency access door positions 13828 | -8/Recycling | Learned 4 Factory zone layouts 13860 | -8/Recycling | Learned location of Storage (-8) 13927 | -8/Recycling | Learned 12 Factory zone layouts 14172 | -8/Recycling | Scanned before Scraplab entrance 14206 | -8/Recycling | Entered Scraplab 14230 | -8/Recycling | Entered Scraptown 14747 | -8/Scraptown | Build established: Hacker-Mutant 14890 | -8/Scraptown | Visited Assassins FH 14921 | -8/Scraptown | Visited Cave Peace 14943 | -8/Scraptown | Visited Comm Corps 15031 | -8/Scraptown | Visited Cyclists 15135 | -8/Scraptown | Visited Fellowship of the Rings 15176 | -8/Scraptown | Visited CR-KLE's Repair Center 15508 | -8/Scraptown | Visited UFD Registry 15508 | -8/Scraptown | Registered with UFD as "Lasersplitter" 15564 | -8/Scraptown | Visited Science Guys 15717 | -8/Scraptown | Entered Cyclist Reading Room 15852 | -8/Scraptown | CR-KLE repaired 8 parts 15992 | -8/Scraptown | Visited Scrap Suit Storage 15995 | -8/Scraptown | Received an X-ray algorithm 16060 | -8/Scraptown | Visited Derelict Rescue Squad 16158 | -8/Scraptown | Found DRS Beacon 16448 | -8/Scraptown | Visited LU-1G1's Boring Crew 16597 | -8/Scraptown | Visited Analyses Database 16648 | -8/Scraptown | Visited Science Testing Area 16679 | -8/Scraptown | Visited Modified Component R&D 16874 | -8/Scraptown | Visited Supply Room 16932 | -8/Scraptown | Visited Supply Room 16992 | -8/Scraptown | Visited Cartography Club 17331 | -8/Scraptown | Learned location of Upper Caves (-5) 17331 | -8/Scraptown | Learned location of Warlord (-5) 17331 | -8/Scraptown | Learned 12 Materials zone layouts 17331 | -8/Scraptown | Learned 8 Factory zone layouts 17331 | -8/Scraptown | Learned 4 Mines zone layouts 17331 | -8/Scraptown | Learned 20 Lower Caves zone layouts 17331 | -8/Scraptown | Learned 16 Upper Caves zone layouts 17331 | -8/Scraptown | Learned 20 Upper Caves zone layouts 17331 | -8/Scraptown | Learned 12 Proximity Caves zone layouts 17331 | -8/Scraptown | Learned 20 Proximity Caves zone layouts 17331 | -8/Scraptown | Learned location of 1 exit from Upper Caves 17331 | -8/Scraptown | Learned location of 1 exit from Proximity Caves 17573 | -8/Scraptown | Found Deep Structural Scanner 17807 | -8/Scraptown | Met Optimus 17807 | -8/Scraptown | Accepted into 0bPrime 17880 | -8/Scraptown | Entered Factory 17880 | -6/Factory | Evolved 4 slots: Propulsion x2, Utility x2 17881 | -6/Factory | Identified exit to Factory 17881 | -6/Factory | Identified exit to Lower Caves 17882 | -6/Factory | Loaded intel: 117 trap records 17884 | -6/Factory | Loaded intel: 6 repair station locations 17885 | -6/Factory | Loaded intel: 4 scanalyzer locations 17886 | -6/Factory | Loaded intel: 4 garrison access locations 17979 | -6/Factory | Loaded intel: 8 recycling unit locations 18002 | -6/Factory | Discovered exit to Lower Caves (range 8) 18063 | -6/Factory | Learned location of Protoforge (-3) 18776 | -6/Factory | Build established: Hacker-Sprinter 18905 | -6/Factory | Entered Lower Caves 18906 | -6/Lower Caves | Identified exit to Lower Caves 18959 | -6/Lower Caves | Learned location of 1 exit from Factory 19192 | -6/Lower Caves | Spotted B-75 Beast 19199 | -6/Lower Caves | Entered another Lower Caves area 19208 | -6/Lower Caves | Discovered exit to Factory (range 11) 19210 | -6/Lower Caves | Entered Factory 19210 | -5/Factory | Evolved 2 slots: Power x1, Propulsion x1 19211 | -5/Factory | Identified exit to Extension 19212 | -5/Factory | Identified exit to Factory 19214 | -5/Factory | Loaded intel: 4 scanalyzer locations 19227 | -5/Factory | Loaded intel: 8 recycling unit locations 19366 | -5/Factory | Learned location of 2 exits from Upper Caves 19397 | -5/Factory | Learned Quarantine terminal intel 19420 | -5/Factory | Learned location of Extension (-5) 19432 | -5/Factory | Learned 4 Testing zone layouts 19434 | -5/Factory | Learned Research stockpile data 19435 | -5/Factory | Repaired Imp. Flight Unit 19435 | -5/Factory | Learned 4 Proximity Caves zone layouts 19436 | -5/Factory | Loaded intel: 28 terminal locations 19437 | -5/Factory | Loaded intel: 56 interactive machine locations 19468 | -5/Factory | Discovered new exit (range 10) 19470 | -5/Factory | Identified exit to Upper Caves 19506 | -5/Factory | Repaired Broken Imp. Reaction Control System 19660 | -5/Factory | Build established: Hacker-Scout 19662 | -5/Factory | Fabricated Imp. Flight Unit (x1) 19692 | -5/Factory | Spotted B-75 Beast 19988 | -5/Factory | Fabricated Cld. Cesium-ion Thruster? 20006 | -5/Factory | Repaired Cesium-ion Thruster+ 20026 | -5/Factory | Discovered exit to Upper Caves (range 6) 20098 | -5/Factory | Discovered exit to Factory (range 8) 20316 | -5/Factory | Fabricated Cld. Cesium-ion Thruster? 20332 | -5/Factory | Build established: Hacker-Sprinter 20843 | -5/Factory | Entered another Factory area 20843 | -4/Factory | Evolved 2 slots: Utility x2 20887 | -4/Factory | Loaded intel: 8 recycling unit locations 20960 | -4/Factory | Central database locked down 20988 | -4/Factory | Sucked down chute 20988 | -4/Factory | Entered Waste 20989 | -4/Waste | Joined by Warlord forces that had cleared the area 20989 | -4/Waste | Identified exit to Factory 21098 | -4/Waste | Entered Factory 21098 | -4/Factory | Accompanied by 20 allies 21148 | -4/Factory | Build established: Hacker-Scout 21172 | -4/Factory | Identified exit to Research 21182 | -4/Factory | Loaded intel: 8 recycling unit locations 21206 | -4/Factory | Discovered new exit (range 6) 21207 | -4/Factory | Identified exit to Upper Caves 21227 | -4/Factory | Lost 6 allies 21265 | -4/Factory | Entered Upper Caves 21265 | -4/Upper Caves | Accompanied by 2 allies 21266 | -4/Upper Caves | Identified exit to Upper Caves 21475 | -4/Upper Caves | Learned location of Testing (-2) 21483 | -4/Upper Caves | Entered another Upper Caves area 21483 | -4/Upper Caves | Discovered exit to Research (range 15) 21484 | -4/Upper Caves | Identified exit to Zhirov 21497 | -4/Upper Caves | Entered Research 21497 | -3/Research | Evolved 2 slots: Propulsion x1, Utility x1 21498 | -3/Research | Identified exit to Armory 21527 | -3/Research | Loaded intel: 5 recycling unit locations 21630 | -3/Research | Spotted B-86 Titan 21725 | -3/Research | Fabricated Lgt. Fission Core? 21892 | -3/Research | Spotted B-90 Cyclops 21894 | -3/Research | Identified exit to Quarantine 21905 | -3/Research | Entered Quarantine 21906 | -3/Quarantine | Loaded intel: 18 terminal locations 21918 | -3/Quarantine | Found Prototype Device 21919 | -3/Quarantine | Identified Exp. Thermal Defense Suite 21937 | -3/Quarantine | Lost 5 parts (1n3u1w) 21975 | -3/Quarantine | Build established: Hacker-Sprinter 22153 | -3/Quarantine | Spotted Fortress 22165 | -3/Quarantine | Discovered new exit (range 5) 22165 | -3/Quarantine | Discovered new exit (range 6) 22166 | -3/Quarantine | Identified exit to Protoforge 22171 | -3/Quarantine | Entered Protoforge 22217 | -3/Protoforge | Superfortress began startup sequence 22260 | -3/Protoforge | Spotted AP7-3 22261 | -3/Protoforge | Spotted AP7-3 22267 | -3/Protoforge | Spotted EXE-6 22267 | -3/Protoforge | Spotted EXE-6 22269 | -3/Protoforge | Spotted SKR-2 22270 | -3/Protoforge | Spotted SKR-2 22270 | -3/Protoforge | Spotted SKR-2 22277 | -3/Protoforge | UFD initiated attack on Protoforge (Readiness: High) 22277 | -3/Protoforge | Loaded intel: 3 recycling unit locations 22295 | -3/Protoforge | Spotted EXE-6 22295 | -3/Protoforge | Spotted EXE-6 22313 | -3/Protoforge | Optimus greeted in Protoforge 22327 | -3/Protoforge | Found Prototype Device 22328 | -3/Protoforge | Identified Exp. Kinecellerator 22337 | -3/Protoforge | Lost 6 parts (5n1u) 22347 | -3/Protoforge | Found UFD Drillbomb 22353 | -3/Protoforge | Lost 8 allies 22429 | -3/Protoforge | Spotted Overlord 22481 | -3/Protoforge | Spotted Hotshot 22507 | -3/Protoforge | Installed UFD Drillbomb at designated target 22507 | -3/Protoforge | UFD reported confirmed Drillbomb installation 22530 | -3/Protoforge | Spotted Executioner 22584 | -3/Protoforge | Found UFD Drillbomb 22596 | -3/Protoforge | UFD reported confirmed Drillbomb installation 22646 | -3/Protoforge | Identified exit to Research 22655 | -3/Protoforge | Spotted Striker 22661 | -3/Protoforge | Spotted Hotshot 22664 | -3/Protoforge | Spotted Striker 22664 | -3/Protoforge | Spotted Striker 22664 | -3/Protoforge | Spotted Executioner 22698 | -3/Protoforge | Lost 4 parts (2p1n1u) 22727 | -3/Protoforge | P-80 Master assimilated allied CN-SEH(E) 22761 | -3/Protoforge | Lost 7 allies 22779 | -3/Protoforge | Spotted Executioner 22834 | -3/Protoforge | Spotted Hotshot 22842 | -3/Protoforge | Spotted Striker 22843 | -3/Protoforge | Spotted Hotshot 22843 | -3/Protoforge | Spotted Hotshot 22860 | -3/Protoforge | Spotted Striker 22860 | -3/Protoforge | Spotted Executioner 22873 | -3/Protoforge | Installed UFD Drillbomb at designated target 22873 | -3/Protoforge | UFD reported confirmed Drillbomb installation 22877 | -3/Protoforge | Found UFD Drillbomb 22931 | -3/Protoforge | Lost 10 allies 22967 | -3/Protoforge | Installed UFD Drillbomb at designated target 22967 | -3/Protoforge | UFD reported confirmed Drillbomb installation 22979 | -3/Protoforge | Build established: Hacker-Mutant 22983 | -3/Protoforge | Spotted Executioner 22996 | -3/Protoforge | Core integrity fell below 50% 22996 | -3/Protoforge | Spotted Hotshot 22996 | -3/Protoforge | Spotted Executioner 23052 | -3/Protoforge | Found UFD Drillbomb 23064 | -3/Protoforge | Spotted Striker 23091 | -3/Protoforge | Spotted Striker 23113 | -3/Protoforge | Spotted Executioner 23121 | -3/Protoforge | Lost 4 allies 23164 | -3/Protoforge | Installed UFD Drillbomb at designated target 23164 | -3/Protoforge | UFD reported confirmed Drillbomb installation 23198 | -3/Protoforge | Found UFD Drillbomb 23210 | -3/Protoforge | Spotted Striker 23295 | -3/Protoforge | UFD reported confirmed Drillbomb installation 23296 | -3/Protoforge | Spotted Hotshot 23298 | -3/Protoforge | Spotted Hotshot 23306 | -3/Protoforge | Core integrity fell below 20% 23333 | -3/Protoforge | Lost 3 parts (2p1n) 23362 | -3/Protoforge | Found Prototype Device 23362 | -3/Protoforge | Identified Adv. Kinecellerator 23363 | -3/Protoforge | UFD reported confirmed Drillbomb installation 23365 | -3/Protoforge | Spotted Striker 23366 | -3/Protoforge | Spotted Striker 23366 | -3/Protoforge | Spotted Striker 23370 | -3/Protoforge | Spotted Striker 23396 | -3/Protoforge | Spotted Striker 23397 | -3/Protoforge | Spotted Executioner 23403 | -3/Protoforge | Found UFD Drillbomb 23434 | -3/Protoforge | Lost 10 allies 23441 | -3/Protoforge | Build established: Scavenger-Mutant 23540 | -3/Protoforge | Spotted Striker 23541 | -3/Protoforge | Spotted Executioner 23552 | -3/Protoforge | Spotted Striker 23552 | -3/Protoforge | Spotted Executioner 23593 | -3/Protoforge | Lost 3 parts (1p1n1w) 23627 | -3/Protoforge | Found UFD Drillbomb 23645 | -3/Protoforge | Spotted EXE-6 23711 | -3/Protoforge | Installed UFD Drillbomb at designated target 23711 | -3/Protoforge | UFD reported confirmed Drillbomb installation 23728 | -3/Protoforge | Spotted Executioner 23729 | -3/Protoforge | Spotted Executioner 23730 | -3/Protoforge | Spotted Executioner 23730 | -3/Protoforge | Spotted Executioner 23753 | -3/Protoforge | UFD reported confirmed Drillbomb installation 23786 | -3/Protoforge | Installed UFD Drillbomb at designated target 23786 | -3/Protoforge | UFD reported confirmed Drillbomb installation 23787 | -3/Protoforge | UFD began Drillbomb countdown 23787 | -3/Protoforge | Entered Research 23787 | -2/Research | Evolved 2 slots: Utility x2 23788 | -2/Research | Identified exit to Access 23803 | -2/Research | Lost 5 allies 23870 | -2/Research | Lost 5 parts (1p2n2u) 23878 | -2/Research | Entered Access 23878 | -1/Access | Evolved 2 slots: Propulsion x1, Utility x1 23930 | -1/Access | Spotted B-99 Colossus 23937 | -1/Access | Spotted Executioner 23937 | -1/Access | Spotted Executioner 23940 | -1/Access | Spotted Executioner 23942 | -1/Access | Spotted Executioner 23961 | -1/Access | Core integrity fell below 50% 23970 | -1/Access | Spotted B-99 Colossus 23998 | -1/Access | Core integrity fell below 20% 24008 | -1/Access | Destroyed by H-81 Overseer with Heavy Linear Accelerator Last Messages --------------- 23962_ Penetrated by Slug. 23965_ Slug penetrates Wall. 23969_ Slug penetrates Door. 23969_ Slug penetrates Wall. 23970_ Adv. Hacking Suite destroyed. 23970_ Slug penetrates Wall. 23970_ Penetrated by Slug. 23972_ Slug penetrates U-05 Engineer. 23975_ Penetrated by Slug. 23975_ Slug penetrates Wall. 23990_ Acquired Lrn. Terrain Scanner. 23996_ Slug penetrates Door. 23996_ Lrn. Terrain Scanner destroyed. 23996_ Slug penetrates Door. 23996_ Slug penetrates Wall. 23996_ Penetrated by Slug. 23999_ Slug penetrates Door. 24000_ Slug penetrates Wall. 24000_ Penetrated by Slug. 24002_ Slug penetrates Wall. Map ----- +----------------------------------------------------+ | ????????????????????????????????# "####"#### | | ????????????????????????????????# ## = | | ????????????????????????????????# ## | | ????????????????????????????????# ## | | ????????????????????????????????# ## % | | ????????????????????????????????# ## | | ????????????????????????????????# ## | | ????????????????????????????????# ## " | | ????????????????????????????????# ## | | ????????????????????????????????" ## | | ????????????????????????????????# ## | | ????????????????????????????? ??# ## | | ????????????????????????????????# ## | | ????????????????????????????????# ## | | ????????????????????????????????# % ########## | | ????????????????????????????????# #????????? | | ?????????????????????????? ??? ?# #????????? | | ????????????????????????????????# #????????? | | ????????????????????????????????# %% #????????? | | ??????????????????????????####### #????????? | | ??????????????????????????# #????????? | | ??????????????????????????# ########+##+####?????? | | ?????????????????????????## #?# = #?????? | | ????????????????????????##% ### #?????? | | ????????????????????????# # #?#???? | | ????????????????????????#@ # #?????? | | ????????????????????????+ H + #???#?? | | ????????????????????????# # #?????? | | ????????????????????????# # " #?????? | | ????????????????????????####### """ #?????? | | ??????????????????????????????# """ #????#? | | ??????????????????????????????# " #?????? | | ??????????????????????????????# #?????? | | ??????????????????????????????# #?????? | | ??????????????????????????????##############?????? | | ?????????????????????????????????????????????????? | | ?????????????????????????????????????????????????? | | ?????????????????????????????????????????????????? | | ?????????????????????????????????????????????????? | | ?????????????????????????????????????????????????? | | ?????????????????????????????????????????????????? | | ?????????????????????????????????????????????????? | | ?????????????????????????????????????????????????? | | ?????????????????????????????????????????????????? | | ?????????????????????????????????????????????????? | | ????????????????????????????#????????????????????? | | ?????????????????????????????????????????????????? | | ?????????????????????????????????????????????????? | | ?????????????????????????????????????????????????? | | ?????????????????????????????????????????????????? | +----------------------------------------------------+ Best States ------------- Heat Dissipation 72 Energy Generation 38 Energy Capacity 380 Matter Stores 300 Matter Capacity 300 Sight Range 20 Robot Scan Range 16 Terrain Scan Density 10 ECM Strength 1 Armor Coverage 450 Propulsion Shielding 15 Evasion (%) 78 Recoil Reduction 3 Kinecelleration 66 Offensive Hacking 50 Defensive Hacking 10 Item Schematics ----------------- Huge Storage Unit | -9/Materials | Hacked Imp. Flight Unit | -9/Materials | Scanalyzed Hacking Suite | -8/Storage | Hacked ECM Suite | -8/Storage | Hacked System Shield | -8/Storage | Hacked Reaction Control System | -8/Recycling | Hacked Imp. Light Armor Plating | -8/Recycling | Hacked Imp. Propulsion Shielding | -8/Recycling | Hacked Katana | -8/Recycling | Hacked Scythe | -8/Recycling | Hacked Lgt. Deuterium Engine | -8/Recycling | Hacked Lrg. Storage Unit | -8/Recycling | Hacked Cld. Cesium-ion Thruster | -5/Factory | Scanalyzed Lgt. Fission Core | -4/Factory | Hacked Robot Schematics ------------------ None Fabricated ------------ Imp. Flight Unit | x1 | -5/Factory Cld. Cesium-ion Thruster | x1 | -5/Factory Cld. Cesium-ion Thruster | x1 | -5/Factory Lgt. Fission Core | x2 | -3/Research Repaired ---------- Lgt. Treads | 59% | -10/Materials Lgt. Treads | 60% | -10/Materials Imp. Treads | 41% | -9/Materials Med. Armor Plating | 63% | -9/Materials Autogun | 47% | -9/Materials Lgt. Treads | 10% | -8/Materials Lgt. Treads | 17% | -8/Materials Hvy. Ion Engine | 34% | -8/Materials Arm. Treads | 43% | -8/Materials Lgt. Armor Plating | 44% | -8/Materials Imp. Flight Unit | 55% | -5/Factory Imp. Reaction Control System | 45% | -5/Factory | Broken Cesium-ion Thruster | 28% | -5/Factory Studied --------- Flight Unit | -9/Materials | Hacked Lgt. Deuterium Engine | -9/Materials | Hacked Katana | -9/Materials | Hacked Rocket Launcher | -9/Materials | Hacked Hammer | -9/Materials | Hacked Cesium-ion Thruster | -8/Materials | Hacked Imp. Grenade Launcher | -8/Materials | Hacked Lgt. Fission Core | -4/Factory | Hacked Q-thruster | -3/Quarantine | Hacked Lgt. Particle Reactor | -3/Quarantine | Hacked Alien Tech Used ----------------- None Achievements -------------- Network Effect Whoosh! Challenges ------------ None Game ------ Seed DisintegrationHoverSpecial Manual? 0 Play Time 06:45:30 Cumulative 335.0 hours Start 2026.01.03 @ 16:54:54 End 2026.01.04 @ 16:33:10 Sessions 11 Manual Loads 0 Difficulty Rogue Special Mode None Game No. 111 Rogue 111 Adventurer 0 Explorer 0 Win Type - Total 15 Types 11/0/1/0/1/0/0/0/0/2 Lore% 59 Gallery% 53 Achievement% 46 Wizard Run 0 Options --------- Layout 0 ASCII 0 Keyboard 0 Movement Numpad Keybinds 0 Fullscreen 1 Font 18/SmallcapsGlow Map View 76x50 Zoom Use 0% Tactical HUD 1 Map Filters NONE Filters NONE Steam 1 RUN: 1a43c295-1ca7-4998-8c2b-b19a614d51e7